fUSD/lending_fUSD_20260426
["ID","MTS","AMOUNT","RATE_DAILY","PERIOD"]
[421173619,1777203042323,-186.0,0.0002,2]
[421173620,1777203042333,-1237.0,0.0002,2]
[421173621,1777203042343,-248.0,0.0002,2]
[421173622,1777203042354,-249.0,0.0002,2]
[421173623,1777203042364,-347.0,0.0002,2]
[421173624,1777203042374,-151.0,0.0002,2]
[421173625,1777203042385,-151.0,0.0002,2]
[421173626,1777203042395,-151.0,0.0002,2]
[421173627,1777203042405,-151.0,0.0002,2]
[421173628,1777203042415,-169.520748,0.0002,2]
[421173629,1777203042427,-193.155,0.0002,2]
[421173630,1777203042437,-193.0,0.0002,2]
[421173631,1777203042447,-675.0,0.0002,2]
[421173632,1777203042458,-825.0,0.0002,30]
[421173633,1777203042468,-162.0,0.0002005,2]
[421173634,1777203042478,-153.0,0.0002005,2]
[421173635,1777203042488,-341.0,0.00020103,3]
[421173636,1777203042498,-927.0,0.00020135,2]
[421173637,1777203042508,-1220.0,0.00020135,2]
[421173638,1777203042519,-623.0,0.00020135,2]
[421173639,1777203042529,-151.0,0.00020187,2]
[421173640,1777203042539,-9221.0103601,0.000202,2]
[421173641,1777203042594,-1033.56296967,0.000202,2]
[421173642,1777203042611,-436.75223375,0.000202,2]
[421173643,1777203042624,-3242.36316023,0.000202,2]
[421173644,1777203042636,-14989.6315154,0.000202,2]
[421173645,1777203042662,-530.0,0.000158,2]
[421173646,1777203042672,-469.8506,0.000202,2]
[421173647,1777203042684,-1021.88178341,0.000202,2]
[421173649,1777203042792,-1738.835448,0.000202,2]
[421173650,1777203042817,-500.0,0.000158,2]
[421173651,1777203042827,-1648.150006,0.000202,2]
[421173652,1777203042839,-431.69598331,0.000202,2]
[421173653,1777203042851,-1164.20361154,0.000202,2]
[421173654,1777203042871,-1590.08460441,0.000202,2]
[421173655,1777203043480,-500.0,0.000158,2]
[421173656,1777203043490,-125.3862082,0.000158,2]
[421173657,1777203043571,-374.6137918,0.000158,2]
[421173658,1777203043580,-500.0,0.000158,2]
[421173659,1777203043590,-500.0,0.000158,2]
[421173660,1777203043600,-500.0,0.000158,2]
[421173661,1777203043609,-500.0,0.000158,2]
[421173662,1777203043619,-21613.27772418,0.000202,2]
[421173663,1777203043628,-154.85,0.000203,2]
[421173664,1777203043638,-500.0,0.00020406,2]
[421173665,1777203043650,-151.0,0.00020707,2]
[421173666,1777203043659,-151.0,0.00020707,2]
[421173667,1777203043669,-300.0,0.00020743,2]
[421173668,1777203043679,-58120.43063459,0.00020744,2]
[421173669,1777203043688,-151.0,0.00020969,2]
[421173670,1777203043698,-158.0,0.00021,10]
[421173671,1777203043707,-158.0,0.00021,10]
[421173672,1777203043717,-186.0,0.00021,2]
[421173673,1777203043727,-1237.0,0.00021,2]
[421173674,1777203043736,-248.0,0.00021,2]
[421173675,1777203043746,-249.0,0.00021,2]
[421173676,1777203043756,-347.0,0.00021,2]
[421173677,1777203043765,-193.0,0.00021,2]
[421173678,1777203043775,-675.0,0.00021,2]
[421173679,1777203043784,-491.0,0.00021019,2]
[421173680,1777203043794,-162.0,0.0002105,2]
[421173681,1777203043803,-153.0,0.0002105,2]
[421173682,1777203043814,-166.0,0.00021251,3]
[421173683,1777203043823,-341.0,0.00021537,3]
[421173684,1777203043832,-1152.0,0.00021659,2]
[421173685,1777203043842,-154.83,0.00021687,2]
[421173686,1777203043853,-150.0,0.00021699,4]
[421173687,1777203043863,-232.91585369,0.00021855,2]
[421173688,1777203043873,-527.78,0.00021855,2]
[421173689,1777203043887,-500.0,0.00021855,2]
[421173690,1777203043897,-242.78947368,0.0002189,2]
[421173691,1777203043906,-163.84210526,0.0002189,2]
[421173692,1777203043916,-236.21052632,0.0002189,2]
[421173693,1777203043926,-172.52631579,0.0002189,2]
[421173694,1777203043936,-179.21052632,0.0002189,2]
[421173695,1777203043946,-152.78947368,0.0002189,2]
[421173696,1777203043955,-214.26315789,0.0002189,2]
[421173697,1777203043965,-185.0,0.0002189,2]
[421173698,1777203043975,-164.63157895,0.0002189,2]
[421173699,1777203043984,-176.26315789,0.0002189,2]
[421173700,1777203043994,-214.63157895,0.0002189,2]
[421173701,1777203044003,-4900.0,0.000219,7]
[421173702,1777203044013,-222.14463088,0.000219,2]
[421173703,1777203044023,-151.0,0.00021918,2]
[421173704,1777203044033,-151.0,0.00021918,2]
[421173705,1777203044043,-159.27,0.00021918,2]
[421173706,1777203044052,-1078.84688241,0.00021999,10]
[421173707,1777203044062,-311.33441411,0.00022,22]
[421173708,1777203044071,-11350.76118029,0.00022,4]
[421173709,1777203044081,-186.0,0.00022,2]
[421173710,1777203044091,-1237.0,0.00022,2]
[421173711,1777203044100,-248.0,0.00022,2]
[421173712,1777203044110,-249.0,0.00022,2]
[421173713,1777203044119,-347.0,0.00022,2]
[421173714,1777203044129,-193.0,0.00022,2]
[421173715,1777203044139,-250.0,0.00022,2]
[421173716,1777203044148,-675.0,0.00022,2]
[421173717,1777203044158,-162.0,0.0002205,2]
[421173718,1777203044167,-153.0,0.0002205,2]
[421173719,1777203044176,-825.0,0.00022093,30]
[421173720,1777203044186,-524.76784775,0.000221,7]
[421173721,1777203044196,-150.0,0.00022389,2]
[421173722,1777203044205,-150.0,0.00022389,2]
[421173723,1777203044215,-150.0,0.00022389,2]
[421173724,1777203044224,-150.0,0.00022389,2]
[421173725,1777203044234,-150.0,0.00022389,2]
[421173726,1777203044244,-292.61,0.00022466,2]
[421173727,1777203044254,-150.0,0.00022567,4]
[421173728,1777203044264,-150.0,0.00022744,4]
[421173729,1777203044275,-405.45,0.000229,2]
[421173730,1777203044285,-303.32,0.000229,2]
[421173731,1777203044295,-850.51,0.000229,2]
[421173732,1777203044305,-150.0,0.00022922,4]
[421173733,1777203044315,-341.0,0.00022972,3]
[421173734,1777203044325,-186.0,0.00023,2]
[421173735,1777203044334,-1237.0,0.00023,2]
[421173736,1777203044345,-248.0,0.00023,2]
[421173737,1777203044354,-249.0,0.00023,2]
[421173738,1777203044363,-347.0,0.00023,2]
[421173739,1777203044373,-193.0,0.00023,2]
[421173740,1777203044383,-675.0,0.00023,2]
[421173741,1777203044393,-172.0,0.0002305,2]
[421173742,1777203044402,-154.0,0.0002305,2]
[421173743,1777203044412,-150.0,0.000231,4]
[421173744,1777203044421,-1218.0,0.00023135,2]
[421173745,1777203044430,-150.0,0.00023218,4]
[421173746,1777203044440,-150.0,0.00023218,4]
[421173747,1777203044449,-300.0,0.00023266,2]
[421173748,1777203044458,-58120.43063459,0.00023267,2]
[421173749,1777203044467,-150.0,0.00023277,4]
[421173750,1777203044477,-150.0,0.00023455,4]
[421173751,1777203044487,-154.85,0.00023501,2]
[421173752,1777203044496,-58601.3,0.000236,7]
[421173753,1777203044506,-162.25551732,0.000236,7]
[421173754,1777203044515,-151.0,0.000236,2]
[421173755,1777203044524,-151.0,0.000236,2]
[421173756,1777203044534,-151.0,0.000236,2]
[421173757,1777203044543,-4493.52810043,0.000236,2]
[421173758,1777203044562,-1270.90457246,0.000236,2]
[421173759,1777203044574,-1735.56732711,0.000236,2]
[421173760,1777203044583,-7500.0,0.000236,2]
[421173761,1777203044593,-7500.0,0.000236,2]
[421173762,1777203044603,-7500.0,0.000236,2]
[421173763,1777203044612,-151.0,0.000236,2]
[421173764,1777203044622,-151.0,0.000236,2]
[421173765,1777203044631,-151.0,0.000236,2]
[421173766,1777203044641,-151.0,0.000236,2]
[421173767,1777203044651,-150.0,0.00023633,4]
[421173768,1777203044660,-150.0,0.00023633,4]
[421173769,1777203044670,-1613.0,0.00023702,2]
[421173770,1777203044679,-150.0,0.00023811,4]
[421173771,1777203044689,-407.85483524,0.000239,2]
[421173772,1777203044699,-150.0,0.00023988,4]
[421173773,1777203044708,-193.0,0.00024,2]
[421173774,1777203044718,-1250.77220184,0.00024,2]
[421173775,1777203044727,-249.0,0.00024,2]
[421173776,1777203044737,-268.0,0.00024,2]
[421173777,1777203044746,-360.20573569,0.00024,2]
[421173778,1777203044756,-151.0,0.00024,2]
[421173779,1777203044766,-197.281077,0.00024,2]
[421173780,1777203044775,-198.56483849,0.00024,2]
[421173781,1777203044784,-676.23403397,0.00024,2]
[421173782,1777203044794,-150.0,0.00024047,4]
[421173783,1777203044803,-150.0,0.00024047,4]
[421173784,1777203044813,-256.03,0.0002411,2]
[421173785,1777203044823,-150.0,0.0002411,7]
[421173786,1777203044833,-150.0,0.00024166,4]
[421173787,1777203044842,-825.0,0.00024187,60]
[421173788,1777203044852,-274.91880887,0.00024297,2]
[421173789,1777203044862,-162.25551732,0.000243,7]
[421173790,1777203044872,-150.0,0.00024344,4]
[421173791,1777203044881,-2000.0,0.00024385,2]
[421173792,1777203044891,-1120.59,0.000244,7]
[421173793,1777203044901,-341.0,0.00024406,3]
[421173794,1777203044910,-486.94,0.00024432,2]
[421173795,1777203044920,-217.0,0.00024476,5]
[421173796,1777203044930,-150.0,0.00024521,4]
[421173797,1777203044939,-486.94,0.00024566,2]
[421173798,1777203044949,-1282.0,0.00024658,5]
[421173799,1777203044958,-150.0,0.00024658,2]
[421173800,1777203044967,-150.0,0.00024658,2]
[421173801,1777203044978,-502.0,0.00024667,11]
[421173802,1777203044988,-150.0,0.00024699,4]
[421173803,1777203044998,-1027.87,0.000248,10]
[421173804,1777203045008,-150.0,0.00024877,4]
[421173805,1777203045018,-150.0,0.00024877,4]
[421173806,1777203045028,-150.0,0.00024877,4]
[421173807,1777203045037,-150.0,0.00024877,4]
[421173808,1777203045046,-150.0,0.00024877,4]
[421173809,1777203045056,-641.31370911,0.00024879,2]
[421173810,1777203045066,-151.0,0.00024897,7]
[421173811,1777203045075,-151.0,0.00024897,7]
[421173812,1777203045084,-451.98,0.00024899,2]
[421173813,1777203045094,-500.0,0.00024899,2]
[421173814,1777203045103,-247.81558344,0.000249,2]
[421173815,1777203045113,-1650.0,0.000249,2]
[421173816,1777203045123,-600.0,0.000249,7]
[421173817,1777203045132,-247.757011,0.000249,2]
[421173818,1777203045142,-7669.99575143,0.000249,2]
[421173824,1777203046113,-265.96,0.000249,2]
[421173826,1777203046141,-265.1286,0.000249,2]
[421173827,1777203046169,-333.26194966,0.000249,2]
[421173829,1777203047145,-29566.25085867,0.0001546,2]
[421173848,1777203047450,-23604.39344623,0.0001546,2]
[421173849,1777203047581,-95477.63731879,0.0001546,2]
[421173850,1777203047594,-2326.27450502,0.0001546,2]
[421173855,1777204146460,171.999999,0.000166,120]
[421173858,1777204232236,-161.0,8.219e-05,2]
[421173859,1777204232248,-280.0,8.219e-05,2]
[421173860,1777204232264,-96.53588,0.00013,2]
[421173861,1777204232287,-153.46412,0.00013,2]
[421173862,1777204232298,-503.0,0.000136,2]
[421173863,1777204232308,-1048.0,0.00013699,2]
[421173864,1777204232318,-42.96229059,0.00014728,2]
[421173865,1777204232331,-368.03770941,0.00014728,2]
[421173866,1777204232341,-171.44401766,0.00014758,2]
[421173867,1777204232351,-162.25551732,0.00014848,2]
[421173868,1777204232361,-1703.0,0.0001503,2]
[421173869,1777204232371,-1498.0,0.0001506,2]
[421173870,1777204232381,-118.46265561,0.00015089,2]
[421173871,1777204232402,-1081.53734439,0.00015089,2]
[421173872,1777204232412,-521.37677507,0.0001509,2]
[421173873,1777204232446,-1264.62322493,0.0001509,2]
[421173874,1777204232456,-448.0,0.0001512,2]
[421173875,1777204232467,-300.0,0.00015149,2]
[421173876,1777204232477,-1665.13334793,0.0001515,2]
[421173877,1777204232496,-176.86665207,0.0001515,2]
[421173878,1777204232506,-159.84211203,0.000153,3]
[421173879,1777204232516,-208.64924681,0.000153,3]
[421173880,1777204232526,-193.50507781,0.000153,3]
[421173881,1777204232536,-184.24567942,0.000153,3]
[421173882,1777204232546,-769.0,0.00015349,2]
[421173883,1777204232555,-381.62700081,0.0001535,2]
[421173884,1777204232566,-500.0,0.0001535,2]
[421173885,1777204232576,-175.23226991,0.0001535,2]
[421173886,1777204232586,-171.41240747,0.0001535,2]
[421173887,1777204232596,-500.0,0.0001535,2]
[421173888,1777204232606,-500.0,0.0001535,2]
[421173889,1777204232616,-500.0,0.0001535,2]
[421173890,1777204232626,-500.0,0.0001535,2]
[421173892,1777204232636,-500.0,0.0001535,2]
[421173893,1777204232646,-490.12479523,0.0001535,2]
[421173895,1777204232657,-500.0,0.0001535,2]
[421173898,1777204232671,-500.0,0.0001535,2]
[421173900,1777204232680,-500.0,0.0001535,2]
[421173901,1777204232690,-500.0,0.0001535,2]
[421173902,1777204232701,-400.0,0.0001535,2]
[421173903,1777204232711,-500.0,0.0001535,2]
[421173904,1777204232722,-500.0,0.0001535,2]
[421173905,1777204232732,-500.0,0.0001535,2]
[421173906,1777204232742,-500.0,0.0001535,2]
[421173907,1777204232752,-500.0,0.0001535,2]
[421173908,1777204232762,-500.0,0.0001535,2]
[421173909,1777204232772,-500.0,0.0001535,2]
[421173910,1777204232783,-500.0,0.0001535,2]
[421173911,1777204232793,-500.0,0.0001535,2]
[421173913,1777204232803,-500.0,0.0001535,2]
[421173915,1777204232813,-500.0,0.0001535,2]
[421173917,1777204232822,-500.0,0.0001535,2]
[421173919,1777204232832,-500.0,0.0001535,2]
[421173921,1777204232842,-500.0,0.0001535,2]
[421173923,1777204232853,-500.0,0.0001535,2]
[421173925,1777204232863,-500.0,0.0001535,2]
[421173928,1777204232873,-500.0,0.0001535,2]
[421173929,1777204232883,-500.0,0.0001535,2]
[421173932,1777204232893,-500.0,0.0001535,2]
[421173934,1777204232906,-500.0,0.0001535,2]
[421173936,1777204232915,-500.0,0.0001535,2]
[421173938,1777204232926,-500.0,0.0001535,2]
[421173940,1777204232936,-500.0,0.0001535,2]
[421173942,1777204232946,-500.0,0.0001535,2]
[421173944,1777204232956,-389.08965258,0.0001535,2]
[421173946,1777204232966,-500.0,0.0001535,2]
[421173947,1777204232976,-500.0,0.0001535,2]
[421173948,1777204232986,-500.0,0.0001535,2]
[421173949,1777204232997,-500.0,0.0001535,2]
[421173950,1777204233007,-500.0,0.0001535,2]
[421173951,1777204233017,-500.0,0.0001535,2]
[421173952,1777204233027,-500.0,0.0001535,2]
[421173953,1777204233037,-500.0,0.0001535,2]
[421173954,1777204233047,-500.0,0.0001535,2]
[421173955,1777204233057,-500.0,0.0001535,2]
[421173956,1777204233067,-500.0,0.0001535,2]
[421173957,1777204233077,-500.0,0.0001535,2]
[421173958,1777204233088,-500.0,0.0001535,2]
[421173959,1777204233098,-500.0,0.0001535,2]
[421173960,1777204233122,-500.0,0.0001535,2]
[421173961,1777204233134,-500.0,0.0001535,2]
[421173962,1777204233145,-500.0,0.0001535,2]
[421173963,1777204233155,-500.0,0.0001535,2]
[421173964,1777204233166,-500.0,0.0001535,2]
[421173965,1777204233176,-500.0,0.0001535,2]
[421173966,1777204233187,-500.0,0.0001535,2]
[421173967,1777204233199,-500.0,0.0001535,2]
[421173968,1777204233210,-500.0,0.0001535,2]
[421173969,1777204233220,-500.0,0.0001535,2]
[421173970,1777204233230,-500.0,0.0001535,2]
[421173971,1777204233241,-500.0,0.0001535,2]
[421173972,1777204233251,-500.0,0.0001535,2]
[421173973,1777204233261,-500.0,0.0001535,2]
[421173974,1777204233271,-500.0,0.0001535,2]
[421173975,1777204233283,-500.0,0.0001535,2]
[421173976,1777204233293,-500.0,0.0001535,2]
[421173977,1777204233303,-500.0,0.0001535,2]
[421173978,1777204233313,-500.0,0.0001535,2]
[421173979,1777204233323,-500.0,0.0001535,2]
[421173980,1777204233334,-500.0,0.0001535,2]
[421173981,1777204233344,-500.0,0.0001535,2]
[421173982,1777204233354,-500.0,0.0001535,2]
[421173983,1777204233363,-500.0,0.0001535,2]
[421173984,1777204233374,-500.0,0.0001535,2]
[421173985,1777204233384,-500.0,0.0001535,2]
[421173986,1777204233395,-500.0,0.0001535,2]
[421173987,1777204233405,-500.0,0.0001535,2]
[421173988,1777204233415,-500.0,0.0001535,2]
[421173989,1777204233426,-500.0,0.0001535,2]
[421173990,1777204233436,-500.0,0.0001535,2]
[421173991,1777204233447,-250.0,0.0001535,2]
[421173992,1777204233456,-500.0,0.0001535,2]
[421173993,1777204233466,-500.0,0.0001535,2]
[421173994,1777204233476,-300.0,0.0001535,2]
[421173995,1777204233486,-300.0,0.0001535,2]
[421173996,1777204233503,-68235.5809,0.00015351,2]
[421173997,1777204233514,-115378.23942323,0.00015351,2]
[421173998,1777204233530,-14725.0292548,0.00015351,2]
[421174001,1777204238350,-682.6248,0.00015351,2]
[421174002,1777204238495,-901.16,0.00015351,2]
[421174003,1777204238507,-2542.91899349,0.00015351,2]
[421174004,1777204238518,-1187.75083997,0.00015351,2]
[421174005,1777204238549,-3929.55298167,0.00015351,2]
[421174006,1777204238560,-682.45837827,0.00015351,2]
[421174007,1777204238614,-7483.80136411,0.00015351,2]
[421174008,1777204238657,-331.39424204,0.00015351,2]
[421174009,1777204238712,-500.0,0.00015351,2]
[421174103,1777204240646,-185393.27617754,0.00015351,2]
[421174104,1777204240847,-438.0000005,0.00015351,2]
[421174105,1777204240859,-377.55000004,0.00015351,2]
[421174106,1777204241019,-610.45389952,0.00015351,2]
[421174130,1777204248078,-147509.07284482,0.00015351,2]
[421174132,1777204248088,-16851.8239,0.00015359,2]
[421174134,1777204248098,-5000.0,0.0001536,2]
[421174136,1777204248108,-2500.0,0.00015398,2]
[421174138,1777204248118,-151.0,0.00015451,2]
[421174140,1777204248129,-151.0,0.00015451,2]
[421174142,1777204248138,-151.0,0.00015451,2]
[421174143,1777204248148,-151.0,0.00015451,2]
[421174144,1777204248158,-151.0,0.00015451,2]
[421174145,1777204248168,-151.0,0.00015451,2]
[421174147,1777204248177,-151.0,0.00015451,2]
[421174148,1777204248187,-151.0,0.00015451,2]
[421174149,1777204248196,-226.71480827,0.00015451,2]
[421174150,1777204248207,-1063.40729114,0.00015459,5]
[421174151,1777204248216,-1063.40729114,0.00015459,5]
[421174152,1777204248225,-1055.77973285,0.00015459,5]
[421174153,1777204248235,-500.0,0.00015698,2]
[421174154,1777204248245,-500.0,0.00015698,2]
[421174155,1777204248255,-500.0,0.00015698,2]
[421174156,1777204248265,-500.0,0.00015698,2]
[421174157,1777204248274,-500.0,0.00015698,2]
[421174158,1777204248283,-145.41193062,0.00015698,2]
[421174159,1777204248317,-354.58806938,0.00015698,2]
[421174160,1777204248326,-500.0,0.00015698,2]
[421174161,1777204248336,-500.0,0.00015698,2]
[421174162,1777204248345,-500.0,0.00015698,2]
[421174163,1777204248356,-500.0,0.00015698,2]
[421174164,1777204248365,-500.0,0.00015698,2]
[421174165,1777204248375,-500.0,0.00015698,2]
[421174166,1777204248384,-500.0,0.00015698,2]
[421174167,1777204248393,-500.0,0.00015698,2]
[421174168,1777204248402,-500.0,0.00015698,2]
[421174169,1777204248412,-500.0,0.00015698,2]
[421174170,1777204248421,-500.0,0.00015698,2]
[421174171,1777204248430,-500.0,0.00015698,2]
[421174172,1777204248440,-500.0,0.00015698,2]
[421174173,1777204248449,-500.0,0.00015698,2]
[421174174,1777204248459,-500.0,0.00015698,2]
[421174175,1777204248468,-500.0,0.00015698,2]
[421174176,1777204248477,-500.0,0.00015698,2]
[421174177,1777204248487,-500.0,0.00015698,2]
[421174178,1777204248496,-500.0,0.00015698,2]
[421174179,1777204248505,-500.0,0.00015698,2]
[421174180,1777204248514,-500.0,0.00015698,2]
[421174181,1777204248523,-500.0,0.00015698,2]
[421174182,1777204248533,-500.0,0.00015698,2]
[421174183,1777204248543,-500.0,0.00015698,2]
[421174184,1777204248552,-500.0,0.00015698,2]
[421174185,1777204248562,-500.0,0.00015698,2]
[421174186,1777204248571,-500.0,0.00015698,2]
[421174187,1777204248580,-500.0,0.00015698,2]
[421174188,1777204248591,-500.0,0.00015698,2]
[421174189,1777204248600,-500.0,0.00015698,2]
[421174190,1777204248610,-500.0,0.00015698,2]
[421174191,1777204248620,-500.0,0.00015698,2]
[421174192,1777204248629,-500.0,0.00015698,2]
[421174193,1777204248639,-500.0,0.00015698,2]
[421174194,1777204248649,-500.0,0.00015698,2]
[421174195,1777204248658,-500.0,0.00015698,2]
[421174196,1777204248667,-500.0,0.00015698,2]
[421174197,1777204248677,-500.0,0.00015698,2]
[421174198,1777204248686,-500.0,0.00015698,2]
[421174199,1777204248695,-500.0,0.00015698,2]
[421174200,1777204248705,-500.0,0.00015698,2]
[421174201,1777204248715,-550.0,0.00015698,2]
[421174202,1777204248724,-15167.77461333,0.00015698,2]
[421174203,1777204248757,-925.03709536,0.00015698,2]
[421174204,1777204248768,-1911.16944807,0.00015698,2]
[421174205,1777204248787,-15089.94994324,0.00015698,2]
[421174206,1777204248796,-2000.0,0.00015698,2]
[421174207,1777204248806,-503.0,0.00015742,3]
[421174208,1777204248815,-500.0,0.00015799,2]
[421174209,1777204248825,-500.0,0.00015799,2]
[421174210,1777204248834,-803.26203477,0.000158,2]
[421174211,1777204248843,-208.842,0.00015982,2]
[421174212,1777204248853,-3050.945,0.00015982,2]
[421174213,1777204248862,-225.26497198,0.00016438,7]
[421174214,1777204248871,-213.26599971,0.00016438,2]
[421174215,1777204248881,-168.41219016,0.00016438,2]
[421174216,1777204248891,-168.41219016,0.00016438,2]
[421174217,1777204248900,-177.7498012,0.00016438,2]
[421174218,1777204248909,-177.7498012,0.00016438,2]
[421174219,1777204248918,-198.60950731,0.00016438,2]
[421174220,1777204248927,-198.60950731,0.00016438,2]
[421174221,1777204248937,-172.0,0.0001647,2]
[421174222,1777204248946,-420.0,0.00016577,2]
[421174223,1777204248956,-3264.8898249,0.00016817,2]
[421174224,1777204248965,-3221.1986643,0.00016817,2]
[421174225,1777204248975,-11905.8467287,0.00016817,2]
[421174226,1777204248985,-1354.56112435,0.00016817,2]
[421174227,1777204249099,-4541.51549796,0.00016817,2]
[421174228,1777204249116,-3694.21045042,0.00016817,2]
[421174235,1777205193100,-257.0,8.219e-05,2]
[421174236,1777205193125,-94.90737503,8.219e-05,2]
[421174237,1777205431549,-280.0,8.219e-05,2]
[421174238,1777205431560,-280.34932486,0.00010111,2]
[421174239,1777205431575,-217.56,0.00010647,2]
[421174240,1777205431585,-1200.0,0.00010698,2]
[421174241,1777205431594,-150.0,0.00010699,2]
[421174242,1777205431605,-300.0,0.00010699,2]
[421174243,1777205431615,-10.93755755,0.000107,2]
[421174244,1777205431627,-142829.06244245,0.000107,2]
[421174245,1777205431637,-255.0,0.00011737,2]
[421174246,1777205431647,-552.0,0.00011768,2]
[421174247,1777205431657,-1600.73168961,0.000119,3]
[421174248,1777205431667,-1277.4352156,0.00013461,2]
[421174249,1777205431676,-532.0,0.00013487,2]
[421174250,1777205431685,-231.0,0.00013487,2]
[421174251,1777205431695,-43023.02501437,0.000135,2]
[421174252,1777205431705,-1260.0,0.00013514,2]
[421174254,1777205431715,-503.0,0.000136,2]
[421174255,1777205431725,-1048.0,0.00013699,2]
[421174256,1777205431734,-3414.79,0.000141,2]
[421174257,1777205431743,-5529.0,0.000142,3]
[421174258,1777205431753,-5529.0,0.000145,5]
[421174259,1777205431763,-1600.0,0.000148,5]
[421174260,1777205431772,-3414.79,0.000149,2]
[421174261,1777205431782,-3300.0,0.000149,5]
[421174262,1777205431791,-150.0,0.00014975,2]
[421174263,1777205431802,-150.0,0.00014975,2]
[421174264,1777205431811,-150.0,0.00014975,2]
[421174265,1777205431820,-150.0,0.00014975,2]
[421174266,1777205431829,-221.31840711,0.00014975,2]
[421174267,1777205431839,-162.25551732,0.00015129,2]
[421174268,1777205431848,-2500.0,0.00015149,2]
[421174269,1777205432289,-5000.0,0.00015151,2]
[421174270,1777205432315,-7941.3555755,0.00015177,2]
[421174271,1777205432325,-308.09394173,0.00015246,2]
[421174272,1777205432334,-542.71015587,0.00015246,2]
[421174273,1777205432343,-500.0,0.00015246,2]
[421174274,1777205432353,-500.0,0.00015246,2]
[421174275,1777205432362,-500.0,0.00015246,2]
[421174276,1777205432372,-500.0,0.00015246,2]
[421174277,1777205432381,-500.0,0.00015246,2]
[421174278,1777205432390,-500.0,0.00015246,2]
[421174279,1777205432400,-500.0,0.00015246,2]
[421174280,1777205432410,-500.0,0.00015246,2]
[421174281,1777205432419,-500.0,0.00015246,2]
[421174282,1777205432429,-500.0,0.00015246,2]
[421174283,1777205432438,-500.0,0.00015246,2]
[421174284,1777205432448,-500.0,0.00015246,2]
[421174285,1777205432458,-500.0,0.00015246,2]
[421174286,1777205432468,-500.0,0.00015246,2]
[421174287,1777205432478,-500.0,0.00015246,2]
[421174288,1777205432487,-500.0,0.00015246,2]
[421174289,1777205432496,-500.0,0.00015246,2]
[421174290,1777205432520,-584.77152226,0.00015246,2]
[421174291,1777205432532,-500.0,0.00015246,2]
[421174292,1777205432542,-500.0,0.00015246,2]
[421174293,1777205432553,-500.0,0.00015246,2]
[421174294,1777205432563,-500.0,0.00015246,2]
[421174295,1777205432573,-500.0,0.00015246,2]
[421174296,1777205432584,-500.0,0.00015246,2]
[421174297,1777205432594,-500.0,0.00015246,2]
[421174298,1777205432605,-500.0,0.00015246,2]
[421174299,1777205432616,-500.0,0.00015246,2]
[421174300,1777205432626,-500.0,0.00015246,2]
[421174301,1777205432636,-500.0,0.00015246,2]
[421174302,1777205432646,-500.0,0.00015246,2]
[421174303,1777205432656,-500.0,0.00015246,2]
[421174304,1777205432666,-500.0,0.00015246,2]
[421174305,1777205432676,-500.0,0.00015246,2]